bitfinex/quotes_SOLUSD_20250401
["timestamp","ask_amount","ask_price","bid_price","bid_amount"]
[1743495550861,18.13683838,128.56,128.54,10.42]
[1743495551381,25.91583838,128.55,128.54,10.42]
[1743495551587,25.91583838,128.55,128.53,20.063]
[1743495551785,18.13683838,128.54,128.53,20.063]
[1743495551963,7.779,128.55,128.53,20.063]
[1743495552763,25.91543838,128.56,128.55,20.0]
[1743495553492,25.91543838,128.56,128.53,20.063]
[1743495553791,25.91543838,128.56,128.53,30.363]
[1743495553979,25.91543838,128.56,128.55,20.0]
[1743495554169,18.13683838,128.56,128.55,20.0]
[1743495554494,7.778,128.57,128.55,20.14216157]
[1743495554495,18.13683838,128.57,128.55,20.14216157]
[1743495554792,18.13683838,128.56,128.55,10.26]
[1743495555169,18.13683838,128.56,128.53,0.063]
[1743495555504,25.91643838,128.54,128.53,0.063]
[1743495556886,81.7,128.53,128.47,0.063]
[1743495557183,18.13683838,128.48,128.47,0.063]
[1743495557700,18.13683838,128.49,128.48,20.0]
[1743495558203,7.7811,128.52,128.5,20.0]
[1743495558398,7.7811,128.52,128.48,20.0]
[1743495558399,18.13683838,128.51,128.48,20.0]
[1743495558706,18.13683838,128.5,128.48,20.0]
[1743495561796,7.7802,128.53,128.5,20.0]
[1743495562103,18.13683838,128.51,128.48,20.0]
[1743495562302,18.13683838,128.5,128.48,20.0]
[1743495562685,18.13683838,128.49,128.47,0.063]
[1743495562880,18.13683838,128.48,128.47,0.063]
[1743495564507,25.92013838,128.48,128.47,0.063]
[1743495571510,25.91973838,128.49,128.47,20.063]
[1743495571727,25.91953838,128.49,128.47,20.063]
[1743495572103,7.7814,128.51,128.47,20.063]
[1743495572402,25.91823838,128.51,128.49,20.0]
[1743495572807,18.13683838,128.52,128.49,20.0]
[1743495573115,25.91703838,128.53,128.51,20.0]
[1743495573302,18.13683838,128.52,128.49,29.86]
[1743495573501,27.2309,128.53,128.49,29.86]
[1743495573810,25.91703838,128.53,128.51,20.0]
[1743495574014,18.13683838,128.52,128.51,20.0]
[1743495575108,25.91703838,128.53,128.51,20.0]
[1743495576422,18.13683838,128.52,128.51,20.0]
[1743495576616,18.13683838,128.53,128.51,20.0]
[1743495577609,18.13683838,128.52,128.49,20.0]
[1743495577817,11.34835736,128.52,128.49,29.74]
[1743495578009,11.34835736,128.52,128.51,20.0]
[1743495578205,19.12915736,128.52,128.51,20.0]
[1743495578410,11.34835736,128.52,128.51,20.0]
[1743495578907,19.12915736,128.52,128.51,20.0]
[1743495579101,11.34835736,128.52,128.51,20.0]
[1743495579297,11.34835736,128.52,128.49,20.0]
[1743495579298,19.12915736,128.52,128.49,20.0]
[1743495579617,11.34835736,128.5,128.49,20.0]
[1743495580024,19.13045736,128.5,128.49,20.0]
[1743495580825,11.34835736,128.5,128.47,20.063]
[1743495580997,11.34835736,128.48,128.47,20.063]
[1743495584233,11.34835736,128.5,128.48,20.0]
[1743495584721,11.34835736,128.49,128.48,20.0]
[1743495585025,11.34835736,128.49,128.48,20.14216157]
[1743495585229,11.34835736,128.49,128.48,20.0]
[1743495588450,11.34835736,128.49,128.48,20.14216157]
[1743495588851,11.34835736,128.5,128.48,20.14216157]
[1743495590981,13.9102,128.53,128.48,20.14216157]
[1743495590982,11.34835736,128.52,128.5,20.0]
[1743495591460,0.03,128.53,128.52,20.28432314]
[1743495591633,11.34835736,128.6,128.59,20.0]
[1743495591836,11.34835736,128.6,128.59,29.54]
[1743495592245,11.34835736,128.6,128.59,9.54]
[1743495592837,11.34835736,128.6,128.57,9.52]
[1743495593155,11.34835736,128.58,128.57,9.52]
[1743495593350,0.03,128.62,128.6,20.0]
[1743495593533,11.34835736,128.61,128.6,20.0]
[1743495593856,0.03,128.62,128.6,20.0]
[1743495594342,11.34835736,128.61,128.6,20.0]
[1743495594732,11.34835736,128.61,128.58,20.0]
[1743495595037,11.34835736,128.61,128.58,27.7772]
[1743495595238,11.34835736,128.61,128.6,20.0]
[1743495595535,0.03,128.62,128.61,0.14216157]
[1743495596938,0.03,128.62,128.6,20.0]
[1743495596939,11.37835736,128.62,128.6,20.0]
[1743495599415,0.03,128.62,128.6,20.0]
[1743495599740,11.37835736,128.62,128.6,20.0]
[1743495600928,0.03,128.62,128.61,0.28432314]
[1743495601625,0.03,128.62,128.61,0.14216157]
[1743495601828,81.7,128.72,128.67,20.0]
[1743495602037,11.34835736,128.69,128.68,9.32]
[1743495602836,19.11895736,128.69,128.68,9.32]
[1743495603151,19.11895736,128.69,128.63,29.3]
[1743495603318,11.34835736,128.64,128.63,29.3]
[1743495603519,11.34835736,128.64,128.63,20.0]
[1743495603729,11.34835736,128.64,128.63,9.3]
[1743495604422,11.34835736,128.64,128.63,29.3]
[1743495605137,81.7,128.73,128.7,20.0]
[1743495605329,0.03,128.74,128.72,20.0]
[1743495605942,11.37835736,128.74,128.72,20.0]
[1743495606124,11.34835736,128.73,128.72,20.0]
[1743495606316,11.34835736,128.73,128.71,9.26]
[1743495606535,11.37835736,128.74,128.72,20.0]
[1743495607221,11.37835736,128.74,128.73,9.24]
[1743495607726,18.12728395,128.74,128.73,9.24]
[1743495608535,18.12728395,128.74,128.73,9.2]
[1743495608746,0.03,128.74,128.73,29.48432314]
[1743495609047,0.03,128.77,128.76,27.90846157]
[1743495609259,0.03,128.77,128.76,28.05062314]
[1743495609831,0.03,128.77,128.76,20.28432314]
[1743495610056,0.03,128.77,128.76,29.44432314]
[1743495610438,0.03,128.77,128.76,20.14216157]
[1743495610635,18.12728395,128.77,128.76,29.14]
[1743495612054,0.03,128.77,128.76,29.14]
[1743495612443,0.03,128.77,128.76,29.1]
[1743495612840,18.12728395,128.77,128.76,9.1]
[1743495613740,0.03,128.77,128.76,37.15062314]
[1743495613961,3.67,128.82,128.81,20.28432314]
[1743495614256,18.09728395,128.84,128.81,29.06]
[1743495614555,18.09728395,128.82,128.79,20.0]
[1743495614859,18.09728395,128.82,128.8,9.06]
[1743495615652,18.09728395,128.84,128.81,20.0]
[1743495616045,18.09728395,128.84,128.83,20.0]
[1743495616246,18.09728395,128.84,128.81,20.0]
[1743495616447,18.64964886,128.91,128.82,0.28432314]
[1743495616646,18.09728395,128.93,128.9,20.0]
[1743495616940,18.09728395,128.91,128.88,20.0]
[1743495617152,18.09728395,128.89,128.88,20.0]
[1743495617368,7.7578,128.91,128.88,20.0]
[1743495617369,18.09728395,128.9,128.88,29.0]
[1743495617549,18.09728395,128.89,128.86,20.0]
[1743495617748,81.7,128.9,128.88,8.98]
[1743495618155,81.7,128.9,128.84,20.0]
[1743495618352,81.7,128.89,128.85,8.98]
[1743495618873,18.09728395,128.86,128.85,8.98]
[1743495619376,25.85758395,128.86,128.85,8.98]
[1743495619558,38.7867,128.91,128.85,8.98]
[1743495619559,3.0099971,128.94,128.9,20.0]
[1743495619748,25.85338395,128.93,128.91,9.1]
[1743495619940,18.09728395,128.92,128.91,9.1]
[1743495621057,18.09728395,128.92,128.88,20.0]
[1743495621258,7.7561,128.93,128.89,9.08]
[1743495621460,18.09728395,128.9,128.89,9.08]
[1743495622845,36.1945679,128.9,128.84,29.06]
[1743495623065,18.09728395,128.85,128.84,9.06]
[1743495623853,18.09728395,128.85,128.84,29.06]
[1743495624370,8.09728395,128.85,128.84,9.06]
[1743495624665,3.0099971,128.94,128.9,20.0]
[1743495624874,18.09728395,128.92,128.91,9.24]
[1743495625051,21.10728105,128.94,128.91,9.24]
[1743495625251,18.09728395,128.92,128.91,9.24]
[1743495625654,18.09728395,128.93,128.91,9.24]
[1743495625960,3.0099971,128.94,128.93,20.0]
[1743495626264,3.0099971,128.94,128.93,20.28432314]
[1743495627367,3.0099971,128.94,128.93,28.04042314]
[1743495627967,3.0099971,128.94,128.93,29.50432314]
[1743495628160,3.0099971,128.94,128.93,20.0]
[1743495628345,21.10728105,128.94,128.93,9.22]
[1743495629668,21.10728105,128.94,128.89,243.76]
[1743495629864,18.09728395,128.92,128.9,9.2]
[1743495630060,3.0099971,128.94,128.9,9.2]
[1743495630061,18.09728395,128.91,128.9,9.2]
[1743495630372,0.03,128.97,128.96,20.28432314]
[1743495630683,0.03,128.97,128.96,29.64432314]
[1743495631269,0.03,128.97,128.96,37.39862314]
[1743495631562,5.3361236,128.97,128.96,37.39862314]
[1743495631867,5.3361236,128.97,128.96,29.50216157]
[1743495632072,5.3361236,128.97,128.96,29.36]
[1743495632967,5.3361236,128.97,128.96,20.14216157]
[1743495633168,5.3361236,128.97,128.96,29.32]
[1743495633367,5.3361236,128.97,128.96,29.3]
[1743495633871,5.3361236,128.97,128.96,29.44216157]
[1743495634574,5.3361236,128.97,128.96,29.3]
[1743495634892,23.43340755,128.97,128.92,20.0]
[1743495635173,18.09728395,128.93,128.92,9.28]
[1743495635673,18.09728395,128.95,128.92,29.28]
[1743495635877,81.7,128.96,128.92,29.28]
[1743495635878,18.09728395,128.94,128.92,29.28]
[1743495636063,18.09728395,128.94,128.92,9.28]
[1743495636259,5.3361236,128.97,128.96,20.0]
[1743495636475,5.3361236,128.97,128.96,20.14216157]
[1743495636984,5.3361236,128.97,128.96,20.0]
[1743495637482,5.3361236,128.97,128.96,270.248272]
[1743495637861,2.36e-05,128.97,128.96,270.748272]
[1743495638269,81.7,129.1,129.06,20.0]
[1743495638466,18.09728395,129.09,129.07,9.52]
[1743495638975,81.7,129.1,129.08,20.0]
[1743495639167,18.09728395,129.12,129.1,20.0]
[1743495639364,7.7435,129.14,129.08,20.0]
[1743495639673,7.7435,129.14,129.09,9.48]
[1743495639674,27.00132969,129.12,129.09,9.48]
[1743495640373,81.7,129.11,129.09,9.48]
[1743495640580,81.7,129.11,129.04,20.0]
[1743495640775,27.00132969,129.05,129.04,9.48]
[1743495641481,34.75022969,129.05,129.04,9.48]
[1743495641863,81.7,129.09,129.06,20.0]
[1743495642390,81.7,129.09,129.07,9.5]
[1743495643072,0.03,129.09,129.08,20.0]
[1743495643981,27.00132969,129.1,129.08,9.52]
[1743495644773,7.7457,129.11,129.08,9.52]
[1743495644774,83.2396,129.15,129.13,20.0]
[1743495644974,27.00132969,129.14,129.13,20.0]
[1743495645268,27.00132969,129.14,129.11,20.0]
[1743495645466,27.00132969,129.13,129.11,20.0]
[1743495645865,27.00132969,129.14,129.13,20.0]
[1743495646185,0.03,129.22,129.15,20.0]
[1743495646385,0.03,129.22,129.17,20.0]
[1743495646386,27.00132969,129.2,129.17,20.0]
[1743495646565,34.74142969,129.2,129.17,20.0]
[1743495646769,27.00132969,129.2,129.17,20.0]
[1743495647168,0.03,129.22,129.17,20.0]
[1743495647586,7.7394,129.21,129.18,0.14216157]
[1743495647803,7.7393,129.21,129.18,0.14216157]
[1743495647989,37.47699759,129.19,129.17,20.0]
[1743495648399,10.4757679,129.19,129.17,20.0]
[1743495648601,27.00132969,129.18,129.15,20.0]
[1743495648809,27.00132969,129.17,129.15,20.0]
[1743495649318,27.00132969,129.16,129.1,20.0]
[1743495649610,34.74602969,129.12,129.1,20.0]
[1743495650477,7.7447,129.12,129.1,20.0]
[1743495650610,34.74602969,129.12,129.1,20.0]
[1743495650798,27.00132969,129.11,129.1,20.0]
[1743495651000,27.00132969,129.11,129.08,20.0]
[1743495651405,34.74602969,129.12,129.08,20.0]
[1743495651813,27.00132969,129.1,129.08,20.0]
[1743495652122,27.00132969,129.09,129.08,20.0]
[1743495652315,27.00132969,129.1,129.08,20.0]
[1743495652818,27.00132969,129.09,129.08,20.0]
[1743495653124,27.00132969,129.09,129.06,0.14216157]
[1743495653125,27.00132969,129.09,129.06,20.0]
[1743495653315,27.00132969,129.07,129.06,20.14216157]
[1743495653819,27.00132969,129.07,129.06,20.0]
[1743495655200,61.75035938,129.07,129.03,20.0]
[1743495655509,61.75035938,129.07,128.94,1.7229]
[1743495655510,27.00132969,129.04,128.99,20.0]
[1743495655702,27.00132969,129.0,128.99,20.0]
[1743495656078,61.75455938,129.0,128.97,29.723]
[1743495656292,27.00132969,128.98,128.97,0.063]
[1743495656679,54.00265938,128.98,128.94,0.063]
[1743495656900,54.00265938,128.95,128.94,0.063]
[1743495657076,7.7519,129.0,128.94,0.063]
[1743495657277,81.7,129.02,128.98,20.0]
[1743495657580,27.00132969,129.01,128.99,20.0]
[1743495657780,34.74962969,129.06,128.99,20.0]
[1743495657986,34.74962969,129.06,129.01,20.0]
[1743495657987,27.00132969,129.02,129.01,20.0]
[1743495658475,27.00132969,129.02,129.01,20.14216157]
[1743495658794,27.00132969,129.03,129.02,20.0]
[1743495659297,27.00132969,129.03,129.0,29.72]
[1743495659485,27.00132969,129.01,129.0,29.72]
[1743495660082,27.00132969,129.01,129.0,29.68]
[1743495660279,27.00132969,129.01,129.0,9.68]
[1743495661091,54.00265938,129.01,128.95,9.66]
[1743495661278,27.00132969,128.96,128.95,9.66]
[1743495662900,108.70132969,128.99,128.96,20.0]
[1743495663678,81.7,129.04,129.01,20.0]
[1743495664022,27.00132969,129.02,129.01,29.6]
[1743495667288,27.00132969,129.02,129.01,9.6]
[1743495668782,27.00132969,129.03,129.01,17.3513]
[1743495668987,27.00132969,129.03,129.01,9.6]
[1743495669296,27.00132969,129.02,129.01,9.6]
[1743495670218,27.00132969,129.02,128.97,9.48]
[1743495670383,7.7497,129.04,128.97,9.48]
[1743495670384,27.00132969,128.99,128.97,9.48]
[1743495670586,27.00132969,128.99,128.98,20.0]
[1743495670887,27.00132969,128.99,128.96,29.46]
[1743495671104,27.00132969,128.97,128.96,29.46]
[1743495671608,27.00132969,128.98,128.96,29.46]
[1743495671804,27.00132969,128.97,128.94,20.063]
[1743495672007,27.00132969,128.96,128.94,9.523]
[1743495672590,27.00132969,128.97,128.94,29.523]
[1743495672813,34.75362969,129.0,128.94,29.523]
[1743495673010,27.00132969,128.97,128.94,29.523]
[1743495673307,27.00132969,129.0,128.96,20.0]
[1743495673498,27.00132969,129.0,128.98,20.0]
[1743495674700,27.00132969,128.99,128.98,20.0]
[1743495675095,27.00132969,128.99,128.96,20.0]
[1743495675296,27.00132969,128.98,128.96,20.0]
[1743495676514,27.00132969,128.97,128.94,29.523]
[1743495678517,27.00132969,128.96,128.94,29.523]
[1743495678730,27.00132969,128.95,128.94,9.523]
[1743495679031,27.00132969,128.95,128.94,0.063]
[1743495679795,18.04068036,128.95,128.94,0.063]
[1743495680502,25.79558036,128.95,128.94,0.063]
[1743495681017,43.83626072,128.95,128.94,0.063]
[1743495681713,61.89576322,128.95,128.94,0.063]
[1743495682920,34.82533161,128.95,128.94,0.063]
[1743495686418,61.89576322,128.95,128.94,0.063]
[1743495686718,81.28306322,128.95,128.89,20.0]
[1743495686925,27.07043161,128.92,128.89,29.2]
[1743495687431,27.07043161,128.91,128.89,29.2]
[1743495688421,27.07043161,128.92,128.89,29.2]
[1743495688714,27.07043161,128.91,128.89,29.2]
[1743495689422,34.82783161,128.91,128.89,9.2]
[1743495689600,27.07043161,128.9,128.89,9.2]
[1743495689800,7.7483,129.06,129.01,20.0]
[1743495689998,27.07043161,129.06,129.04,20.0]
[1743495690301,12.04103893,129.07,129.06,20.28432314]
[1743495691202,12.04103893,129.07,129.06,20.14216157]
[1743495691409,39.11147054,129.07,129.04,20.0]
[1743495691614,27.07043161,129.06,129.04,20.0]
[1743495692505,27.07043161,129.05,129.02,29.36216157]
[1743495692727,27.07043161,129.04,129.02,29.22]
[1743495693029,27.07043161,129.03,129.02,29.22]
[1743495693221,27.07043161,129.03,129.02,9.22]
[1743495693621,27.07043161,129.03,128.96,29.18]
[1743495693622,81.7,129.02,128.96,29.18]
[1743495693826,27.07043161,128.97,128.96,29.18]
[1743495694631,27.07043161,128.97,128.96,9.18]
[1743495695719,27.07043161,128.97,128.91,20.0]
[1743495695720,27.07043161,128.97,128.91,29.14]
[1743495695930,27.07043161,128.93,128.91,29.14]
[1743495696233,27.07043161,128.92,128.91,9.14]
[1743495696623,27.07043161,128.92,128.91,20.0]
[1743495696929,27.07043161,128.92,128.89,20.0]
[1743495697138,27.07043161,128.91,128.89,20.0]
[1743495697432,6.4248,128.99,128.92,20.0]
[1743495697640,27.07043161,128.94,128.92,20.0]
[1743495697809,27.07043161,128.94,128.89,27.29686157]
[1743495697810,27.07043161,128.93,128.89,20.0]
[1743495698011,27.07043161,128.9,128.89,20.0]
[1743495698419,27.07043161,128.9,128.87,20.0]
[1743495698623,27.07043161,128.89,128.87,20.0]
[1743495698934,27.07043161,128.88,128.86,9.16]
[1743495699230,27.07043161,128.87,128.86,9.16]
[1743495699417,1.6453,128.94,128.88,20.0]
[1743495699611,27.07043161,128.91,128.88,20.0]
[1743495699818,81.7,128.9,128.88,20.0]
[1743495700506,108.77043161,128.9,128.88,20.0]
[1743495701517,108.77043161,128.9,128.87,9.18]
[1743495701826,27.07043161,128.92,128.91,20.0]
[1743495702024,81.7,128.93,128.91,29.16]
[1743495703321,81.7,128.93,128.91,36.9172]
[1743495704009,81.7,128.93,128.91,29.16]
[1743495705727,27.07043161,128.96,128.94,20.0]
[1743495705936,81.7,128.97,128.95,9.08]
[1743495706139,27.07043161,128.96,128.95,9.08]
[1743495706940,108.77043161,128.97,128.95,9.08]
[1743495707328,27.07043161,128.96,128.95,9.08]
[1743495711056,19.14964886,129.03,128.95,9.08]
[1743495711057,81.7,129.01,128.99,20.0]
[1743495711257,81.7,129.01,129.0,9.18]
[1743495712149,108.77043161,129.01,129.0,9.18]
[1743495712347,108.77043161,129.01,128.99,20.0]
[1743495712652,108.77043161,129.01,129.0,9.14]
[1743495713443,81.7,129.01,129.0,9.14]
[1743495713643,81.7,129.05,129.04,20.0]
[1743495714726,108.77043161,129.05,129.04,20.0]
[1743495714929,81.7,129.05,129.04,20.0]
[1743495715746,81.7,129.05,129.04,27.7495]
[1743495715939,81.7,129.05,129.04,20.0]
[1743495716543,0.03,129.07,129.06,20.0]
[1743495716849,0.03,129.07,129.06,29.36216157]
[1743495717042,0.03,129.07,129.06,29.50432314]
[1743495717468,81.7,129.12,129.1,27.7455]
[1743495717643,81.7,129.12,129.11,9.2]
[1743495718444,81.7,129.16,129.11,9.2]
[1743495718648,81.7,129.15,129.12,20.0]
[1743495718843,81.7,129.15,129.11,9.2]
[1743495718844,81.7,129.15,129.14,20.0]
[1743495719354,108.77043161,129.18,129.14,20.14216157]
[1743495719534,108.77043161,129.18,129.16,20.0]
[1743495719731,89.4411,129.18,129.17,9.28]
[1743495719948,89.4411,129.18,129.14,20.0]
[1743495719949,34.81153161,129.18,129.14,20.0]
[1743495720229,27.07043161,129.16,129.15,9.28]
[1743495720430,2.7350679,129.19,129.17,20.0]
[1743495721639,2.7350679,129.19,129.18,0.14216157]
[1743495722046,2.7350679,129.19,129.17,20.0]
[1743495723647,7.7417,129.17,129.11,20.0]
[1743495723849,27.07043161,129.15,129.11,20.0]
[1743495724440,27.07043161,129.14,129.11,20.0]
[1743495725160,27.07043161,129.13,129.1,9.32]
[1743495725339,81.7,129.12,129.1,9.32]
[1743495725540,81.7,129.12,129.11,20.0]
[1743495726166,108.77043161,129.16,129.12,0.14216157]
[1743495726869,108.77043161,129.16,129.14,20.0]
[1743495727168,108.77043161,129.16,129.1,9.32]
[1743495727169,108.77043161,129.15,129.1,29.32]
[1743495727357,27.07043161,129.13,129.1,29.32]
[1743495727561,108.77043161,129.14,129.1,29.32]
[1743495727987,116.51393161,129.14,129.1,29.32]
[1743495728270,27.07043161,129.13,129.1,29.32]
[1743495729947,27.07043161,129.11,129.08,20.0]
[1743495730170,27.07043161,129.11,129.09,9.24]
[1743495730672,81.7,129.1,129.09,9.24]
[1743495730872,81.7,129.1,129.09,9.38216157]
[1743495733756,81.7,129.1,129.09,16.9865]
[1743495735544,81.7,129.1,129.09,7.7465]
[1743495735745,81.7,129.1,129.09,16.8665]
[1743495736062,18.01886068,129.13,129.11,20.0]
[1743495736251,0.03,129.13,129.12,7.7447]
[1743495736849,0.03,129.13,129.11,20.0]
[1743495738556,18.01886068,129.13,129.09,29.12]
[1743495738856,99.68886068,129.12,129.09,29.12]
[1743495740264,99.68886068,129.12,129.09,36.866]
[1743495740265,81.7,129.12,129.09,36.866]
[1743495740452,0.03,129.13,129.12,20.0]
[1743495740955,0.03,129.13,129.12,20.28432314]
[1743495741764,20.72392858,129.19,129.17,20.0]
[1743495741966,20.75392858,129.19,129.18,9.1]
[1743495742870,20.72392858,129.19,129.18,9.1]
[1743495743352,81.7,129.18,129.12,20.0]
[1743495743559,17.98886068,129.15,129.14,20.0]
[1743495743751,81.7,129.17,129.14,20.0]
[1743495743752,17.98886068,129.16,129.14,20.0]
[1743495744766,17.98886068,129.16,129.14,27.7434]
[1743495744967,99.68886068,129.17,129.14,20.0]
[1743495745561,99.68886068,129.17,129.14,27.7435]
[1743495746057,81.7,129.17,129.14,27.7435]
[1743495746257,2.7350679,129.19,129.18,20.0]
[1743495746471,2.7350679,129.19,129.18,29.04]
[1743495747455,20.72392858,129.19,129.18,29.04]
[1743495747660,20.72392858,129.19,129.18,9.04]
[1743495749169,28.46442858,129.19,129.18,9.04]
[1743495749958,20.72392858,129.19,129.18,9.04]
[1743495750159,20.72392858,129.19,129.17,8.96]
[1743495750362,17.98886068,129.18,129.17,8.96]
[1743495751161,2.7350679,129.19,129.17,8.96]
[1743495751378,17.98886068,129.18,129.17,8.96]
[1743495753385,99.68886068,129.18,129.17,28.96]
[1743495753685,81.7,129.18,129.17,28.96]
[1743495753982,81.7,129.18,129.17,36.7017]
[1743495754484,2.7650679,129.19,129.17,36.98602314]
[1743495754784,6.79e-05,129.19,129.18,0.28432314]
[1743495755268,6.79e-05,129.19,129.18,8.02542314]
[1743495755677,6.79e-05,129.19,129.18,26.675072]
[1743495756489,6.79e-05,129.19,129.18,27.175072]
[1743495756686,81.7,129.28,129.27,20.0]
[1743495756897,81.7,129.28,129.27,28.92]
[1743495757269,17.98886068,129.33,129.31,20.0]
[1743495757470,81.7,129.34,129.31,20.0]
[1743495757670,99.68886068,129.34,129.31,20.0]
[1743495758366,17.98886068,129.32,129.29,20.14216157]
[1743495758579,99.68886068,129.33,129.31,20.0]
[1743495758770,81.7,129.33,129.31,20.0]
[1743495758972,0.03,129.32,129.31,20.0]
[1743495759169,0.03,129.32,129.31,20.14216157]
[1743495759369,0.03,129.32,129.31,20.28432314]
[1743495759811,0.03,129.32,129.31,28.01762314]
[1743495759972,0.03,129.32,129.31,20.28432314]
[1743495760173,0.03,129.32,129.31,20.0]
[1743495760400,18.01886068,129.32,129.29,20.0]
[1743495760579,17.98886068,129.31,129.29,20.0]
[1743495760776,99.68886068,129.31,129.29,20.0]
[1743495760979,99.68886068,129.3,129.29,20.0]
[1743495761187,0.03,129.32,129.29,20.0]
[1743495761398,18.01886068,129.32,129.29,20.0]
[1743495761596,17.98886068,129.31,129.29,20.0]
[1743495762086,17.98886068,129.3,129.29,20.0]
[1743495762295,35.97772136,129.3,129.25,20.0]
[1743495762589,35.97772136,129.3,129.21,20.0]
[1743495762590,17.98886068,129.26,129.21,20.0]
[1743495762767,17.98886068,129.24,129.2,0.14216157]
[1743495763095,17.98886068,129.24,129.19,20.0]
[1743495763096,99.68886068,129.23,129.19,20.0]
[1743495763276,81.7,129.22,129.19,20.0]
[1743495763675,99.68886068,129.22,129.19,20.0]
[1743495763977,81.7,129.22,129.19,20.0]
[1743495764388,81.7,129.22,129.21,20.0]
[1743495766673,81.7,129.22,129.21,20.14216157]
[1743495766874,99.68886068,129.28,129.24,20.0]
[1743495767101,81.7,129.27,129.25,8.86]
[1743495767589,107.42456068,129.27,129.25,8.86]
[1743495767794,18.01886068,129.26,129.25,8.86]
[1743495768768,81.7,129.25,129.22,28.84]
[1743495768968,17.98886068,129.23,129.22,8.84]
[1743495769488,0.03,129.26,129.22,8.84]
[1743495769693,17.98886068,129.23,129.22,8.84]
[1743495771177,17.98886068,129.23,129.18,8.9]
[1743495771178,81.7,129.22,129.18,8.9]
[1743495771479,81.7,129.21,129.18,28.9]
[1743495771882,81.7,129.21,129.18,20.0]
[1743495771883,107.42816068,129.21,129.18,20.0]
[1743495772103,17.98886068,129.19,129.16,20.0]
[1743495772290,81.7,129.18,129.16,20.0]
[1743495773396,99.68886068,129.18,129.16,20.0]
[1743495773788,107.42996068,129.18,129.16,20.0]
[1743495774189,99.68886068,129.18,129.15,8.9]
[1743495774695,99.68886068,129.18,129.14,20.0]
[1743495774889,81.7,129.18,129.15,8.9]
[1743495775079,99.68886068,129.18,129.15,8.9]
[1743495775479,81.7,129.17,129.15,8.9]
[1743495776086,99.68886068,129.17,129.14,20.0]
[1743495776292,99.68886068,129.17,129.13,8.943]
[1743495776583,81.7,129.16,129.14,20.0]
[1743495776985,81.7,129.16,129.14,28.86]
[1743495777893,81.7,129.15,129.14,8.86]
[1743495778403,81.7,129.15,129.13,0.063]
[1743495778404,81.7,129.14,129.13,0.063]
[1743495778601,7.7407,129.19,129.14,20.0]
[1743495778785,17.98886068,129.16,129.13,8.923]
[1743495779397,17.98886068,129.15,129.13,8.923]
[1743495780103,17.98886068,129.16,129.13,8.923]
[1743495780602,7.7412,129.18,129.13,0.063]
[1743495780603,17.98886068,129.15,129.13,0.063]
[1743495781479,17.98886068,129.16,129.13,7.807]
[1743495781702,17.98886068,129.18,129.14,20.0]
[1743495781898,17.98886068,129.18,129.14,27.7431]
[1743495782101,17.98886068,129.17,129.14,20.0]
[1743495782296,17.98886068,129.16,129.13,7.807]
[1743495782694,17.98886068,129.16,129.13,0.063]
[1743495782906,17.98886068,129.15,129.13,0.063]
[1743495783100,81.7,129.14,129.13,0.063]
[1743495783414,99.68886068,129.14,129.13,0.063]
[1743495783586,81.7,129.14,129.13,0.063]
[1743495783784,81.7,129.14,129.13,7.8071]